bitfinex/quotes_BTCUSD_20241208
["timestamp","ask_amount","ask_price","bid_price","bid_amount"]
[1733681536360,0.1278312,100080.0,100070.0,0.34208655]
[1733681538229,0.1278312,100080.0,100070.0,0.19222133]
[1733681540593,0.1278312,100080.0,100070.0,0.41635779]
[1733681542305,0.0017312,100080.0,100070.0,0.41635779]
[1733681542507,0.0017312,100080.0,100070.0,0.59566696]
[1733681542946,0.0017312,100080.0,100070.0,0.92689012]
[1733681544705,0.0017312,100080.0,100070.0,0.52344449]
[1733681545035,0.0017312,100080.0,100070.0,0.92741508]
[1733681549887,0.0017312,100080.0,100070.0,0.91993325]
[1733681550056,0.0017312,100080.0,100070.0,0.92741516]
[1733681550322,0.0017312,100080.0,100070.0,0.91993325]
[1733681550913,0.0017312,100080.0,100070.0,1.02513325]
[1733681551298,0.0017312,100080.0,100070.0,0.91993325]
[1733681555700,0.0017312,100080.0,100070.0,0.99543633]
[1733681555903,0.0017312,100080.0,100070.0,1.21981592]
[1733681556724,0.0017312,100080.0,100070.0,1.13006409]
[1733681558665,0.0017312,100080.0,100070.0,1.05456101]
[1733681560108,0.0017312,100080.0,100070.0,0.91993326]
[1733681560530,0.0017312,100080.0,100070.0,0.99543634]
[1733681563943,0.0017312,100080.0,100070.0,0.26024258]
[1733681564159,0.1267312,100080.0,100070.0,1.05489692]
[1733681564583,0.1267312,100080.0,100070.0,1.14469505]
[1733681565764,0.1267312,100080.0,100070.0,1.05489692]
[1733681566167,0.1267312,100080.0,100070.0,1.14469635]
[1733681566495,0.1267312,100080.0,100070.0,1.05489692]
[1733681567425,0.1267312,100080.0,100070.0,1.14467334]
[1733681567828,0.1267312,100080.0,100070.0,1.05489692]
[1733681568369,0.1267312,100080.0,100070.0,0.92010898]
[1733681568518,0.1267312,100080.0,100070.0,0.81315252]
[1733681568718,0.1267312,100080.0,100070.0,0.72337923]
[1733681568956,0.1267312,100080.0,100070.0,0.81316901]
[1733681569122,0.1267312,100080.0,100070.0,1.14456676]
[1733681570598,0.1267312,100080.0,100070.0,0.92012807]
[1733681570838,0.1267312,100080.0,100070.0,0.81316901]
[1733681571012,0.1267312,100080.0,100070.0,1.14456676]
[1733681572178,0.1267312,100080.0,100070.0,0.92012689]
[1733681573139,0.1267312,100080.0,100070.0,0.1847395]
[1733681573306,0.1267312,100080.0,100070.0,0.9200666]
[1733681577940,0.1567312,100080.0,100070.0,0.9200666]
[1733681578157,0.1267312,100080.0,100070.0,0.9200666]
[1733681582034,0.0017312,100080.0,100070.0,0.99556968]
[1733681583552,0.0017312,100080.0,100070.0,0.9200666]
[1733681584734,0.1272312,100080.0,100070.0,0.9200666]
[1733681584956,0.1272312,100080.0,100070.0,1.05473178]
[1733681586418,0.1272312,100080.0,100070.0,1.05487158]
[1733681589087,0.0017312,100080.0,100070.0,1.05487158]
[1733681589505,0.0017312,100080.0,100070.0,0.99569884]
[1733681590117,0.0017312,100080.0,100070.0,0.92019576]
[1733681591203,0.0017312,100080.0,100070.0,0.92022589]
[1733681596153,0.0017312,100080.0,100070.0,0.92042778]
[1733681597323,0.12304671,100090.0,100070.0,0.92042778]
[1733681597527,0.12304671,100090.0,100080.0,0.22453482]
[1733681598105,0.17274671,100090.0,100080.0,0.22453482]
[1733681598304,0.17274671,100090.0,100080.0,0.40439082]
[1733681598741,0.17286112,100090.0,100080.0,0.40439082]
[1733681599280,0.17286112,100090.0,100080.0,0.40434308]
[1733681600013,0.17486112,100090.0,100080.0,0.40434308]
[1733681600241,0.17486112,100090.0,100080.0,0.26965083]
[1733681600454,0.27489063,100090.0,100080.0,0.08979483]
[1733681600704,0.45472863,100090.0,100080.0,0.26965083]
[1733681600917,0.45472863,100090.0,100080.0,0.08979483]
[1733681601332,0.44472863,100090.0,100080.0,0.08979483]
[1733681601734,0.0778,100080.0,100070.0,0.80929334]
[1733681601936,0.0778,100080.0,100070.0,1.14078387]
[1733681602590,0.1078,100080.0,100070.0,0.91629678]
[1733681602996,0.1078,100080.0,100070.0,0.91829678]
[1733681603143,0.1078,100080.0,100070.0,0.92029678]
[1733681603629,0.43548551,100080.0,100070.0,0.74043278]
[1733681603758,0.43548551,100080.0,100070.0,0.22935258]
[1733681603962,0.43548551,100080.0,100070.0,0.09466033]
[1733681604359,0.43548551,100080.0,100070.0,0.0048655]
[1733681605276,0.43548551,100080.0,100070.0,0.0028655]
[1733681606058,0.43548551,100080.0,100070.0,0.0008655]
[1733681606470,0.43748551,100080.0,100070.0,0.0008655]
[1733681606684,0.43548551,100080.0,100070.0,0.0008655]
[1733681606881,0.43748551,100080.0,100070.0,0.0008655]
[1733681607635,0.43921671,100080.0,100070.0,0.0008655]
[1733681608460,0.4491483,100080.0,100070.0,0.0008655]
[1733681610879,0.4491483,100080.0,100070.0,0.00834018]
[1733681611800,0.4491483,100080.0,100070.0,0.0008655]
[1733681613753,0.7489283,100080.0,100070.0,0.0008655]
[1733681641541,0.83872179,100080.0,100070.0,0.0008655]
[1733681641996,0.7489283,100080.0,100070.0,0.0008655]
[1733681642517,0.83874307,100080.0,100070.0,0.0008655]
[1733681646681,0.97346523,100080.0,100070.0,0.0008655]
[1733681647140,0.97363536,100080.0,100070.0,0.0008655]
[1733681647642,1.15340101,100080.0,100070.0,0.0008655]
[1733681650710,1.37810808,100080.0,100070.0,0.0008655]
[1733681650979,1.15340101,100080.0,100070.0,0.0008655]
[1733681651767,1.37810808,100080.0,100070.0,0.0008655]
[1733681652052,1.3784581,100080.0,100070.0,0.0008655]
[1733681652545,1.15362603,100080.0,100070.0,0.0008655]
[1733681653730,1.3784581,100080.0,100070.0,0.0008655]
[1733681654155,1.15362603,100080.0,100070.0,0.0008655]
[1733681654939,1.48347063,100080.0,100070.0,0.0008655]
[1733681655225,1.34372246,100080.0,100070.0,0.0008655]
[1733681655483,1.18182322,100080.0,100070.0,0.0008655]
[1733681655744,1.04692398,100080.0,100070.0,0.0008655]
[1733681656299,1.62414392,100080.0,100070.0,5e-07]
[1733681656804,0.527374,100070.0,100060.0,5.0009926]
[1733681656807,0.477374,100070.0,100060.0,5.0009926]
[1733681657039,0.88076966,100070.0,100060.0,4.9010526]
[1733681657289,1.18054966,100070.0,100060.0,4.9000606]
[1733681657533,1.25802212,100070.0,100060.0,4.8400966]
[1733681657886,1.68036944,100070.0,100060.0,4.7501206]
[1733681658048,1.37700329,100070.0,100060.0,4.7501206]
[1733681658282,1.68036944,100070.0,100060.0,4.7501206]
[1733681658494,1.25783282,100070.0,100060.0,4.7301326]
[1733681658697,1.25783282,100070.0,100060.0,4.6501806]
[1733681658913,1.26683282,100070.0,100060.0,4.6501806]
[1733681659334,1.27483282,100070.0,100060.0,4.6511806]
[1733681661262,1.28326018,100070.0,100060.0,4.6511806]
[1733681661874,1.54389318,100070.0,100060.0,4.65104605]
[1733681663338,1.27498504,100070.0,100060.0,4.65104605]
[1733681664434,1.49873047,100070.0,100060.0,4.65104605]
[1733681665017,1.50046187,100070.0,100060.0,4.65104605]
[1733681666036,1.50046187,100070.0,100060.0,4.54590667]
[1733681666272,1.82431644,100070.0,100060.0,3.92288625]
[1733681666417,2.07270187,100070.0,100060.0,3.87288625]
[1733681666635,1.84902018,100070.0,100060.0,3.27274617]
[1733681666808,2.07264646,100070.0,100060.0,3.24411673]
[1733681667185,2.02904646,100070.0,100060.0,2.98791673]
[1733681667389,2.12919351,100070.0,100060.0,2.92541673]
[1733681667593,1.95034646,100070.0,100060.0,2.90322873]
[1733681667809,1.72672018,100070.0,100060.0,2.81766942]
[1733681667998,1.92557309,100070.0,100060.0,2.81766942]
[1733681668510,2.10436655,100070.0,100060.0,2.79768142]
[1733681668720,2.10436655,100070.0,100060.0,2.71772942]
[1733681669118,1.92557309,100070.0,100060.0,2.71772942]
[1733681669357,2.10432167,100070.0,100060.0,2.71772942]
[1733681669564,1.92557309,100070.0,100060.0,2.71772942]
[1733681669765,1.92557309,100070.0,100060.0,2.61778942]
[1733681670595,1.92557309,100070.0,100060.0,2.59780142]
[1733681670799,1.92557309,100070.0,100060.0,2.53783742]
[1733681670999,1.92557309,100070.0,100060.0,2.51094944]
[1733681671202,1.92557309,100070.0,100060.0,2.46712585]
[1733681671411,2.10423391,100070.0,100060.0,2.46712585]
[1733681671619,2.10355191,100070.0,100060.0,2.46712585]
[1733681671879,2.19854323,100070.0,100060.0,2.46712585]
[1733681672102,1.65094323,100070.0,100060.0,2.46712585]
[1733681672744,1.65094323,100070.0,100060.0,2.39986733]
[1733681672973,1.67394323,100070.0,100060.0,2.27514412]
[1733681673812,1.67394323,100070.0,100060.0,2.21518012]
[1733681674014,1.53995191,100070.0,100060.0,2.16534251]
[1733681674433,1.67686324,100070.0,100060.0,2.16534251]
[1733681674642,1.54291183,100070.0,100060.0,2.08539051]
[1733681674894,1.54291183,100070.0,100060.0,2.06540251]
[1733681675109,2.22446165,100070.0,100060.0,2.06540251]
[1733681675770,2.22446165,100070.0,100060.0,2.04541451]
[1733681675977,2.22446165,100070.0,100060.0,2.00543851]
[1733681676417,2.22446165,100070.0,100060.0,1.98545051]
[1733681676636,2.22446165,100070.0,100060.0,1.96546251]
[1733681678539,2.000905,100070.0,100060.0,1.96546251]
[1733681678761,2.1415263,100070.0,100060.0,1.96546251]
[1733681679960,1.88484209,100070.0,100060.0,1.96546251]
[1733681680158,2.12787109,100070.0,100060.0,1.96546251]
[1733681680940,1.58027109,100070.0,100060.0,1.96546251]
[1733681683667,1.49098896,100070.0,100060.0,1.96546251]
[1733681683941,1.71454561,100070.0,100060.0,1.96546251]
[1733681684147,1.81386995,100070.0,100060.0,1.96546251]
[1733681686039,1.67992013,100070.0,100060.0,1.96271524]
[1733681686275,1.67992013,100070.0,100060.0,1.95898414]
[1733681686487,1.67992013,100070.0,100060.0,1.93467182]
[1733681686697,1.68929916,100070.0,100060.0,1.93467182]
[1733681687552,1.68929916,100070.0,100060.0,1.90955182]
[1733681687755,1.29857872,100070.0,100060.0,1.98475182]
[1733681687962,1.03570151,100070.0,100060.0,2.03045182]
[1733681688167,0.90168958,100070.0,100060.0,2.03045182]
[1733681688590,0.85168958,100070.0,100060.0,2.03045182]
[1733681688803,0.84368958,100070.0,100060.0,2.02945182]
[1733681689018,1.0470312,100070.0,100060.0,2.02945182]
[1733681689245,1.0550312,100070.0,100060.0,2.03045182]
[1733681689456,1.0640312,100070.0,100060.0,2.03045182]
[1733681689661,1.18904313,100070.0,100060.0,2.03045182]
[1733681689868,1.14170151,100070.0,100060.0,2.02945182]
[1733681690041,1.15070151,100070.0,100060.0,2.02945182]
[1733681691019,1.15770151,100070.0,100060.0,2.03045182]
[1733681691421,1.33636233,100070.0,100060.0,2.03045182]
[1733681691626,1.43617767,100070.0,100060.0,2.03045182]
[1733681693458,1.03416466,100070.0,100060.0,2.03045182]
[1733681693664,1.66040464,100070.0,100060.0,2.03045182]
[1733681694296,1.57094179,100070.0,100060.0,2.03045182]
[1733681695281,1.57094179,100070.0,100060.0,1.98475182]
[1733681695493,1.97825551,100070.0,100060.0,1.89240591]
[1733681695705,1.84406123,100070.0,100060.0,1.89240591]
[1733681695919,1.84406123,100070.0,100060.0,1.87246791]
[1733681696545,2.5388456,100070.0,100060.0,1.87246791]
[1733681696763,2.14631274,100070.0,100060.0,1.87246791]
[1733681696956,1.8443756,100070.0,100060.0,1.77252791]
[1733681698410,2.27045301,100070.0,100060.0,1.77252791]
[1733681698612,1.8776098,100070.0,100060.0,1.77252791]
[1733681698755,1.57567266,100070.0,100060.0,1.67258791]
[1733681698964,1.96788399,100070.0,100060.0,1.67258791]
[1733681699146,1.57567266,100070.0,100060.0,1.67258791]
[1733681699348,2.12962492,100070.0,100060.0,1.67258791]
[1733681699585,1.7369885,100070.0,100060.0,1.67258791]
[1733681700420,1.7369885,100070.0,100060.0,1.65176176]
[1733681701491,1.7369885,100070.0,100060.0,1.57180976]
[1733681701700,1.7369885,100070.0,100060.0,1.55182176]
[1733681702589,1.73831673,100070.0,100060.0,1.55182176]
[1733681705141,1.19680873,100070.0,100060.0,1.87822176]
[1733681705347,1.5917846,100070.0,100060.0,1.87822176]
[1733681707125,1.5917846,100070.0,100060.0,1.92612176]
[1733681707337,1.59300809,100070.0,100060.0,1.92612176]
[1733681707565,1.49319275,100070.0,100060.0,1.92612176]
[1733681711505,1.18990508,100070.0,100060.0,1.92612176]
[1733681716884,1.19100651,100070.0,100060.0,1.92612176]
[1733681718567,2.24107097,100070.0,100060.0,1.71145386]
[1733681718820,1.84379248,100070.0,100060.0,1.54256967]
[1733681719020,1.94360782,100070.0,100060.0,1.54256967]
[1733681719925,1.63941082,100070.0,100060.0,1.54256967]
[1733681720113,2.03548139,100070.0,100060.0,1.54256967]
[1733681720267,1.98286139,100070.0,100060.0,1.54256967]
[1733681721590,1.58683967,100070.0,100060.0,1.54256967]
[1733681721799,1.98297513,100070.0,100060.0,1.54256967]
[1733681722014,1.67966182,100070.0,100060.0,1.54256967]
[1733681722209,1.58684547,100070.0,100060.0,1.54256967]
[1733681722423,1.9829894,100070.0,100060.0,1.51177967]
[1733681724066,1.9829894,100070.0,100060.0,1.49179167]
[1733681724238,1.9829894,100070.0,100060.0,1.41183967]
[1733681724438,1.9829894,100070.0,100060.0,1.39185167]
[1733681724868,1.9829894,100070.0,100060.0,1.37186367]
[1733681727000,1.9829894,100070.0,100060.0,1.33188767]
[1733681727204,1.9829894,100070.0,100060.0,1.27192367]
[1733681727625,1.9829894,100070.0,100060.0,1.25193567]
[1733681728679,1.28352636,100070.0,100060.0,1.25193567]
[1733681728880,1.80038711,100070.0,100060.0,1.25193567]
[1733681729086,1.40458036,100070.0,100060.0,1.25193567]
[1733681729494,1.01878502,100070.0,100060.0,1.32943567]
[1733681729703,1.46978682,100070.0,100060.0,1.37473567]
[1733681730942,1.49278682,100070.0,100060.0,1.37473567]
[1733681735873,1.18941349,100070.0,100060.0,1.37473567]
[1733681736221,1.0970946,100070.0,100060.0,1.37473567]
[1733681736439,1.49587415,100070.0,100060.0,1.37473567]
[1733681737236,0.79372802,100070.0,100060.0,1.37473567]
[1733681737446,1.29234513,100070.0,100060.0,1.37473567]
[1733681737860,1.29232362,100070.0,100060.0,1.37473567]
[1733681740804,1.29209996,100070.0,100060.0,1.37473567]
[1733681743570,1.2923385,100070.0,100060.0,1.37473567]
[1733681745634,1.29232675,100070.0,100060.0,1.37473567]
[1733681750365,1.29293629,100070.0,100060.0,1.37473567]
[1733681753673,0.89354336,100070.0,100060.0,1.37473567]
[1733681753880,1.29282933,100070.0,100060.0,1.37473567]
[1733681754302,0.89354336,100070.0,100060.0,1.37473567]
[1733681754527,1.06705407,100070.0,100060.0,1.37473567]
[1733681754765,0.97122077,100070.0,100060.0,1.37473567]
[1733681754946,0.6177681,100070.0,100060.0,1.37473567]
[1733681755809,0.7677681,100070.0,100060.0,1.37473567]
[1733681756016,1.03746111,100070.0,100060.0,1.37473567]
[1733681757500,1.2620728,100070.0,100060.0,1.37473567]
[1733681758207,1.33916785,100070.0,100060.0,1.37473567]
[1733681758634,1.06947484,100070.0,100060.0,1.37473567]
[1733681759568,1.24908513,100070.0,100060.0,1.37473567]
[1733681760397,1.29898658,100070.0,100060.0,1.37473567]
[1733681760575,1.24898658,100070.0,100060.0,1.37473567]
[1733681761375,1.38366391,100070.0,100060.0,1.37473567]
[1733681761582,1.36331072,100070.0,100060.0,1.37473567]
[1733681762837,1.28621567,100070.0,100060.0,1.37473567]
[1733681763302,1.37596769,100070.0,100060.0,1.37473567]
[1733681763531,1.37565955,100070.0,100060.0,1.37473567]
[1733681763943,1.19578555,100070.0,100060.0,1.55462767]
[1733681764148,0.56754091,100070.0,100060.0,1.55462767]
[1733681764363,0.41754091,100070.0,100060.0,1.55462767]
[1733681765206,0.41754091,100070.0,100060.0,1.55362767]
[1733681765207,0.41054091,100070.0,100060.0,1.55362767]
[1733681765412,0.40754091,100070.0,100060.0,1.55462767]
[1733681765827,0.40754091,100070.0,100060.0,1.55362767]
[1733681766044,0.41054091,100070.0,100060.0,1.55362767]
[1733681766476,0.40154091,100070.0,100060.0,1.55362767]
[1733681766899,0.27544091,100070.0,100060.0,1.55362767]
[1733681769206,0.14734091,100070.0,100060.0,1.55362767]
[1733681769413,0.01924091,100070.0,100060.0,1.55362767]
[1733681773225,0.01924091,100070.0,100060.0,1.62913075]
[1733681775128,0.01924091,100070.0,100060.0,1.72916026]
[1733681775384,0.0017312,100080.0,100070.0,0.179874]
[1733681775591,0.0017312,100080.0,100070.0,0.38507606]
[1733681775785,0.0017312,100080.0,100070.0,0.38407708]
[1733681776627,0.0077312,100080.0,100070.0,0.38407708]
[1733681776833,0.0097312,100080.0,100070.0,0.63410659]
[1733681777054,0.0097312,100080.0,100070.0,0.83920659]
[1733681777254,0.03406112,100090.0,100080.0,0.38405908]
[1733681777432,0.03406112,100090.0,100080.0,0.48408859]
[1733681778687,0.03606112,100090.0,100080.0,0.48408859]
[1733681779069,0.03606112,100090.0,100080.0,0.48608859]
[1733681779470,0.03606112,100090.0,100080.0,0.48408859]
[1733681779471,0.03406112,100090.0,100080.0,0.48408859]
[1733681779874,0.03506112,100090.0,100080.0,0.49108859]
[1733681780056,0.03506112,100090.0,100080.0,0.49308859]
[1733681780521,0.03506112,100090.0,100080.0,0.49108859]
[1733681780895,0.03506112,100090.0,100080.0,0.49508859]
[1733681781273,0.03506112,100090.0,100080.0,0.51520852]
[1733681781966,0.03506112,100090.0,100080.0,0.319556]
[1733681782918,0.03506112,100090.0,100080.0,0.39505908]
[1733681783294,0.03506112,100090.0,100080.0,0.319556]
[1733681783685,0.03506112,100090.0,100080.0,0.39505908]
[1733681784114,0.03506112,100090.0,100080.0,0.49508859]
[1733681784791,0.03506112,100090.0,100080.0,0.41958551]
[1733681785429,0.03506112,100090.0,100080.0,0.77059167]
[1733681786976,0.03506112,100090.0,100080.0,0.69508859]
[1733681788498,0.03506112,100090.0,100080.0,0.61958551]
[1733681788721,0.03506112,100090.0,100080.0,0.56958551]
[1733681790612,0.03506112,100090.0,100080.0,0.67468551]
[1733681791886,0.03506112,100090.0,100080.0,0.56958551]
[1733681792077,0.03506112,100090.0,100080.0,0.469556]
[1733681793154,0.03506112,100090.0,100080.0,0.319556]
[1733681793389,0.03506112,100090.0,100080.0,0.190856]
[1733681793664,0.13509063,100090.0,100080.0,0.190856]
[1733681793999,0.13409063,100090.0,100080.0,0.183856]
[1733681794199,0.13409063,100090.0,100080.0,0.179856]
[1733681794399,0.13409063,100090.0,100080.0,0.182856]
[1733681794652,0.13409063,100090.0,100080.0,0.179856]
[1733681795053,0.13509063,100090.0,100080.0,0.179856]
[1733681795656,0.13509063,100090.0,100080.0,0.181856]
[1733681796100,0.13509063,100090.0,100080.0,0.179856]
[1733681800693,0.13509063,100090.0,100070.0,0.43603]
[1733681800941,0.25899063,100090.0,100070.0,0.35973]
[1733681801222,0.43882863,100090.0,100070.0,0.539593]
[1733681801631,0.55875063,100090.0,100080.0,0.179856]
[1733681801859,0.55775063,100090.0,100080.0,0.179856]
[1733681802321,0.55875063,100090.0,100080.0,0.179856]
[1733681802543,0.55775063,100090.0,100080.0,0.179856]
[1733681802715,0.55875063,100090.0,100080.0,0.179856]
[1733681802926,0.51295063,100090.0,100080.0,0.179856]
[1733681805100,0.51295063,100090.0,100070.0,0.359728]
[1733681805101,0.69278863,100090.0,100070.0,0.359726]
[1733681805326,0.87262663,100090.0,100070.0,0.3605915]
[1733681805541,0.87262663,100090.0,100070.0,0.5404565]
[1733681805977,0.69278863,100090.0,100070.0,0.5404565]
[1733681806189,0.69178863,100090.0,100070.0,0.5404565]
[1733681806397,0.69278863,100090.0,100070.0,0.5404565]
[1733681808417,0.70269889,100090.0,100070.0,0.5404565]
[1733681809523,0.70269889,100090.0,100070.0,0.1807285]
[1733681809755,0.37632951,100080.0,100070.0,0.0008655]
[1733681809977,0.85594551,100080.0,100070.0,0.0008655]
[1733681810889,0.95594551,100080.0,100070.0,0.0038655]
[1733681811151,1.30278216,100080.0,100070.0,0.0028655]
[1733681811388,1.70702053,100080.0,100070.0,0.0028655]
[1733681811588,1.61741201,100080.0,100070.0,0.0028655]
[1733681811794,1.61641201,100080.0,100070.0,0.0008655]
[1733681812004,1.62141201,100080.0,100070.0,0.0018655]
[1733681813067,1.6111916,100080.0,100070.0,0.0018655]
[1733681813288,1.52159667,100080.0,100070.0,0.0018655]
[1733681813979,1.61298993,100080.0,100070.0,0.0018655]
[1733681814881,1.65299493,100080.0,100070.0,0.0018655]
[1733681815544,1.56313438,100080.0,100070.0,0.0018655]
[1733681815758,1.67275609,100080.0,100070.0,0.0018655]
[1733681815966,1.44892948,100080.0,100070.0,0.0018655]
[1733681817286,1.44882371,100080.0,100070.0,0.0018655]
[1733681818452,1.44863905,100080.0,100070.0,0.0018655]
[1733681818655,0.483074,100070.0,100060.0,1.25193207]
[1733681818857,1.41990635,100070.0,100060.0,1.25193207]
[1733681819073,1.41990635,100070.0,100060.0,1.25093567]
[1733681819074,1.37515278,100070.0,100060.0,1.25093567]
[1733681819282,1.28551405,100070.0,100060.0,1.25093567]
[1733681819478,1.2064467,100070.0,100060.0,1.25093567]
[1733681819679,1.47496812,100070.0,100060.0,1.25093567]
[1733681819883,1.2064467,100070.0,100060.0,1.25093567]
[1733681820091,1.2264467,100070.0,100060.0,1.25093567]
[1733681820295,1.22625395,100070.0,100060.0,1.25093567]
[1733681821239,1.31421893,100070.0,100060.0,1.25193567]
[1733681821719,1.44829301,100070.0,100060.0,1.25193567]
[1733681822179,1.5456413,100070.0,100060.0,1.25293567]
[1733681822444,1.54564138,100070.0,100060.0,1.25293567]
[1733681822699,1.32206628,100070.0,100060.0,1.25293567]
[1733681823190,1.14328596,100070.0,100060.0,1.25293567]
[1733681824119,1.1532201,100070.0,100060.0,1.25293567]
[1733681824300,1.01914602,100070.0,100060.0,1.25293567]
[1733681826137,1.017136,100070.0,100060.0,1.25293567]
[1733681827654,1.10648437,100070.0,100060.0,1.25293567]
[1733681827870,1.56482645,100070.0,100060.0,1.25293567]
[1733681829310,1.43075237,100070.0,100060.0,1.25293567]
[1733681829793,1.10648437,100070.0,100060.0,1.25293567]
[1733681830012,1.27938418,100070.0,100060.0,1.25293567]
[1733681830246,1.41345826,100070.0,100060.0,1.25293567]
[1733681830479,1.4186569,100070.0,100060.0,1.25293567]
[1733681830708,1.59743722,100070.0,100060.0,1.25293567]
[1733681831185,1.4186569,100070.0,100060.0,1.25293567]
[1733681832863,1.59743722,100070.0,100060.0,1.25293567]
[1733681833108,1.4186569,100070.0,100060.0,1.25293567]
[1733681834036,1.59743722,100070.0,100060.0,1.25293567]
[1733681834280,1.4186569,100070.0,100060.0,1.05068049]
[1733681834929,1.4186569,100070.0,100060.0,0.95074049]
[1733681835366,1.59743722,100070.0,100060.0,0.95074049]
[1733681836757,1.59743722,100070.0,100060.0,0.86494326]
[1733681837210,2.14503722,100070.0,100060.0,0.86494326]
[1733681837428,2.14503722,100070.0,100060.0,0.35409821]
[1733681837429,2.05568885,100070.0,100060.0,0.35409821]
[1733681837624,2.27926395,100070.0,100060.0,0.25415821]
[1733681838481,2.14518987,100070.0,100060.0,0.25415821]
[1733681838636,2.27047982,100070.0,100060.0,0.19419421]
[1733681838817,2.27047982,100070.0,100060.0,0.17420621]
[1733681839020,2.26147982,100070.0,100060.0,0.15321821]
[1733681839477,2.27047982,100070.0,100060.0,0.15321821]
[1733681839694,2.0826995,100070.0,100060.0,0.05327821]
[1733681839894,2.26127236,100070.0,100060.0,0.05327821]
[1733681840122,2.27027236,100070.0,100060.0,0.05327821]
[1733681840299,1.72267236,100070.0,100060.0,0.05227821]
[1733681840499,1.54644236,100070.0,100060.0,0.03229021]
[1733681840703,1.42424236,100070.0,100040.0,0.0018535]
[1733681840910,0.53263951,100050.0,100040.0,0.0008651]
[1733681841100,0.93221485,100050.0,100040.0,0.0008651]
[1733681841304,0.81494436,100050.0,100040.0,0.0008651]
[1733681841527,0.63542902,100050.0,100040.0,0.0008651]
[1733681842163,0.63542902,100050.0,100040.0,0.00126323]
[1733681843022,0.64442902,100050.0,100040.0,0.00126323]
[1733681843424,0.65142902,100050.0,100040.0,0.00226323]
[1733681844002,0.80142902,100050.0,100040.0,0.00226323]
[1733681844214,0.65142902,100050.0,100040.0,0.00226323]
[1733681844431,0.80142902,100050.0,100040.0,0.00226323]
[1733681844644,0.65142902,100050.0,100040.0,0.00226323]
[1733681844858,0.80142902,100050.0,100040.0,0.00226323]
[1733681845068,0.90124436,100050.0,100040.0,0.00226323]
[1733681845318,0.92131839,100050.0,100040.0,0.00226323]
[1733681845752,0.77131839,100050.0,100040.0,0.00226323]
[1733681845968,0.92131839,100050.0,100040.0,0.00226323]
[1733681846183,0.77131839,100050.0,100040.0,0.00226323]
[1733681846396,0.78140322,100050.0,100040.0,0.00226323]
[1733681846612,0.93140322,100050.0,100040.0,0.00226323]
[1733681846879,0.78140322,100050.0,100040.0,0.00226323]
[1733681847096,0.93140322,100050.0,100040.0,0.00226323]
[1733681847305,0.98360322,100050.0,100040.0,0.00226323]
[1733681847520,0.83360322,100050.0,100040.0,0.00226323]
[1733681847959,0.98360322,100050.0,100040.0,0.00226323]
[1733681848449,0.83360322,100050.0,100040.0,0.00226323]
[1733681848903,0.98360322,100050.0,100040.0,0.00226323]
[1733681849388,0.83360322,100050.0,100040.0,0.00226323]
[1733681849616,0.98360322,100050.0,100040.0,0.00226323]
[1733681849839,0.83360322,100050.0,100040.0,0.00226323]
[1733681850279,0.98360322,100050.0,100040.0,0.00226323]
[1733681850377,0.83360322,100050.0,100040.0,0.00226323]
[1733681850598,0.98879843,100050.0,100040.0,0.00226323]
[1733681850810,0.83879843,100050.0,100040.0,0.00226323]
[1733681851225,1.07806731,100050.0,100040.0,0.00226323]
[1733681851431,1.21197063,100050.0,100040.0,0.00226323]
[1733681851739,1.06197063,100050.0,100040.0,0.00226323]
[1733681851960,1.21247028,100050.0,100040.0,0.00226323]
[1733681852384,1.39140777,100050.0,100040.0,0.00226323]
[1733681852587,1.24140777,100050.0,100040.0,0.00226323]
[1733681853224,1.39140777,100050.0,100040.0,0.00226323]
[1733681853358,1.61507963,100050.0,100040.0,0.00226323]
[1733681853779,1.46507963,100050.0,100040.0,0.00226323]
[1733681854411,1.37561089,100050.0,100040.0,0.00226323]
[1733681854881,1.60641089,100050.0,100040.0,0.00226323]
[1733681855044,1.45641089,100050.0,100040.0,0.00226323]
[1733681855246,1.47220778,100050.0,100040.0,0.00226323]
[1733681855480,1.47252058,100050.0,100040.0,0.00226323]
[1733681855625,1.14327029,100050.0,100040.0,0.00226323]
[1733681856031,1.47252014,100050.0,100040.0,0.00226323]
[1733681856446,1.56167652,100050.0,100040.0,0.00226323]
[1733681856692,1.41167652,100050.0,100040.0,0.00226323]
[1733681856929,1.56167652,100050.0,100040.0,0.00226323]
[1733681857345,1.18800466,100050.0,100040.0,0.00226323]
[1733681857559,1.33800466,100050.0,100040.0,0.00226323]
[1733681857979,1.18800466,100050.0,100040.0,0.00226323]
[1733681858190,1.33800466,100050.0,100040.0,0.00226323]
[1733681858405,1.18800466,100050.0,100040.0,0.00226323]
[1733681858833,1.33800466,100050.0,100040.0,0.00226323]
[1733681859275,1.18800466,100050.0,100040.0,0.00226323]
[1733681859487,1.33800466,100050.0,100040.0,0.00226323]
[1733681859688,1.18800466,100050.0,100040.0,0.00226323]
[1733681860747,1.33800466,100050.0,100040.0,0.00226323]
[1733681860958,1.18800466,100050.0,100040.0,0.00226323]
[1733681861386,1.33885942,100050.0,100040.0,0.00226323]
[1733681861905,1.18885942,100050.0,100040.0,0.00226323]
[1733681862118,1.33885942,100050.0,100040.0,0.00226323]
[1733681862365,1.76671664,100050.0,100040.0,0.00226323]
[1733681862767,1.61671664,100050.0,100040.0,0.00226323]
[1733681862968,1.76671664,100050.0,100040.0,0.00226323]
[1733681863172,1.61671664,100050.0,100040.0,0.00226323]
[1733681863552,1.76671664,100050.0,100040.0,0.00226323]
[1733681863974,1.61671664,100050.0,100040.0,0.00226323]
[1733681864417,1.76671664,100050.0,100040.0,0.00226323]
[1733681865017,1.61671664,100050.0,100040.0,0.00226323]
[1733681865401,1.61671664,100050.0,100040.0,0.00312893]
[1733681865616,1.76844804,100050.0,100040.0,0.00312893]
[1733681865767,1.61844804,100050.0,100040.0,0.00312893]
[1733681866177,1.37424844,100050.0,100040.0,0.00312893]
[1733681866530,1.61908041,100050.0,100040.0,0.00312893]
[1733681867389,1.76908041,100050.0,100040.0,0.00312893]
[1733681867958,1.61908041,100050.0,100040.0,0.00312893]
[1733681868174,1.76908041,100050.0,100040.0,0.00312893]
[1733681868598,1.61908041,100050.0,100040.0,0.00312893]
[1733681868812,1.76908041,100050.0,100040.0,0.00312893]
[1733681869014,1.61908041,100050.0,100040.0,0.00312893]
[1733681869474,1.76908041,100050.0,100040.0,0.00312893]
[1733681869753,1.61908041,100050.0,100040.0,0.00312893]
[1733681869940,1.64908041,100050.0,100040.0,0.00312893]
[1733681870086,1.25466224,100050.0,100040.0,0.00312893]
[1733681870486,1.4076382,100050.0,100040.0,0.00312893]
[1733681870683,1.65341937,100050.0,100040.0,0.00312893]
[1733681870908,1.80341937,100050.0,100040.0,0.00312893]
[1733681871396,1.65341937,100050.0,100040.0,0.00312893]
[1733681871746,1.80341937,100050.0,100040.0,0.00312893]
[1733681872393,1.65341937,100050.0,100040.0,0.00312893]
[1733681872815,1.80341937,100050.0,100040.0,0.00312893]
[1733681873026,1.2576382,100050.0,100040.0,0.00312893]
[1733681873232,1.35004442,100050.0,100040.0,0.00312893]
[1733681873490,1.31645312,100050.0,100040.0,0.00312893]
[1733681873684,1.16645312,100050.0,100040.0,0.00312893]
[1733681873888,1.31645312,100050.0,100040.0,0.00312893]